Cogmind - Beta 14 @@@ ROGUE MODE // 2024.08.25 @ 20:49:51 Player: javashane Result: Smashed by cave-in Performance ------------- Evolutions (2) 1000 Regions Visited (3) 600 Robots Destroyed (18) 90 Value Destroyed (411) 411 Prototype IDs (1) 20 Alien Tech Used (0) 0 Bonus (0) 0 TOTAL SCORE: 2121 Bonus ------- None Cogmind --------- Core Integrity 0/550 Matter 198/300 Energy 100/100 System Corruption 27% Temperature Cool (0) Movement Core (50) Location -8/Materials Parts ------- > --- POWER (1) -------- (None) > --- PROPULSION (4) --- (None) > --- UTILITY (4) ------ (None) > --- WEAPON (2) ------- (None) > --- INVENTORY (5) ---- Ion Engine Small Matter Pod (0) Light Armor Plating Assault Rifle Rocket Launcher Peak State ------------ > --- POWER ------------ Ion Engine > --- PROPULSION ------- Improved Flight Unit Improved Flight Unit Improved Flight Unit Improved Flight Unit > --- UTILITY ---------- Small Storage Unit Structural Scanner > --- WEAPON ----------- Particle Gun > --- INVENTORY -------- Ion Engine Small Matter Pod Light Armor Plating Assault Rifle Rocket Launcher Mining Laser [Rating: 17] Favorites ----------- Power Ion Engine Engine Ion Engine Propulsion Aluminum Leg Leg Aluminum Leg Wheel Compact Wheel Flight Unit Improved Flight Unit Utility Small Storage Unit Device Seismic Detector Storage Small Storage Unit Weapon Assault Rifle Energy Gun Medium Laser Ballistic Gun Assault Rifle Launcher Grenade Launcher Special Weapon Mining Laser Build | -11 -10 -9 -8 ------- Run | Yrd Mat Mat Mat Slots Evolved 4 | . . 2 2 Power . | . . . . Propulsion 2 | . . 2 . Utility 2 | . . . 2 Weapon . | . . . . Parts Attached 15 | 1 . 11 3 Power 1 | . . 1 . Engine 1 | . . 1 . Core . | . . . . Reactor . | . . . . Propulsion 8 | . . 7 1 Treads . | . . . . Leg 1 | . . 1 . Wheel 2 | . . 2 . Hover . | . . . . Flight 5 | . . 4 1 Utility 2 | 1 . 1 . Device 2 | 1 . 1 . Storage . | . . . . Processor . | . . . . Hackware . | . . . . Protection . | . . . . Artifact . | . . . . Weapon 4 | . . 2 2 Energy Gun 2 | . . 1 1 Energy Cannon . | . . . . Ballistic Gun . | . . . . Ballistic Cannon . | . . . . Launcher 1 | . . 1 . Special Weapon 1 | . . . 1 Impact Weapon . | . . . . Slashing Weapon . | . . . . Piercing Weapon . | . . . . Special Melee Weapon . | . . . . Unidentified Prototypes 1 | . . 1 . Parts Lost 11 | . . 3 8 Power 1 | . . . 1 Propulsion 5 | . . 2 3 Utility 2 | . . . 2 Weapon 3 | . . 1 2 Highest Loss Streak 3 | . . 2 3 To Critical Strikes . | . . . . Average Slot Usage (%) 66 | . 100 73 43 Engine 7 | . 14 6 5 Leg 11 | . 28 14 . Wheel 1 | . . 3 . Flight 9 | . . 5 16 Device 8 | . 14 11 4 Storage 10 | . 14 11 8 Energy Gun 9 | . 14 11 5 Ballistic Gun 4 | . 14 4 . Launcher 1 | . . 5 . Special Weapon 1 | . . . 3 Peak Build Rating 17 | 7 7 17 17 Average Rating 8 | 6 7 8 9 On Entrance 8 | 6 7 7 14 Naked Turns 32 | . . . 32 Heaviest Build 17 | 15 15 17 15 Greatest Support 28 | 20 20 28 15 Greatest Overweight (x) 2 | . . 2 . Average Overweight (x) . | . . . . Largest Inventory Capacity 8 | 8 8 8 8 Average Capacity 7 | 8 8 8 7 Most Carried 8 | 7 8 8 6 Average Carried 6 | 6 7 7 5 Final Capacity 8 | 8 8 8 5 Final Carried 8 | 7 8 6 5 Class Distribution -------------------- 100% | Mutant Dominant Class ---------------- Mutant | -10/Materials Mutant | -9/Materials Mutant | -8/Materials Resources | -11 -10 -9 -8 ----------- Run | Yrd Mat Mat Mat Matter Collected 326 | 212 31 83 . Remotely . | . . . . Salvage Created 516 | 73 54 389 . Parts 29 | 5 5 19 . Haulers Intercepted 1 | . . 1 . Recyclers Shooed . | . . . . Parts Field Recycled . | . . . . Retrieved Matter . | . . . . Parts Self-Destructed . | . . . . Prevented . | . . . . Kills | -11 -10 -9 -8 ------- Run | Yrd Mat Mat Mat Combat Hostiles Destroyed 9 | . 1 7 1 Guns 4 | . 1 3 . AOE 4 | . . 4 . Classes Destroyed 12 | 2 2 8 . Worker 1 | . . 1 . Builder 1 | . . 1 . Tunneler 1 | 1 . . . Hauler 1 | . . 1 . Recycler 2 | 1 . 1 . Mechanic 1 | . . 1 . Watcher 2 | . 1 1 . Swarmer 1 | . . 1 . Grunt 4 | . 1 3 . Brawler 1 | . . 1 . Duelist 1 | . . 1 . Sentry 2 | . . 1 1 Best Kill Streak 8 | 2 1 8 1 Combat Bots Only 5 | . 1 5 1 Max Kills in Single Turn 2 | 1 1 2 1 Gunslinging . | . . . . Exploded 1 | . . 1 . Melee . | . . . . Uniques/NPCs Destroyed . | . . . . Combat | -11 -10 -9 -8 -------- Run | Yrd Mat Mat Mat Hostile Shots Fired 57 | . 6 39 12 Missed 21 | . 2 12 7 Damage Taken 1714 | . 47 502 1165 Core 703 | . 10 111 582 Absorbed by Shields . | . . . . Core Remaining (%) 89 | 100 96 72 . Volleys Fired 50 | 4 7 12 27 Largest 2 | 2 2 2 1 Hottest 100 | 70 70 95 100 Shots Fired 71 | 8 14 22 27 Gun 45 | 8 14 12 11 Cannon . | . . . . Launcher 10 | . . 10 . Special 16 | . . . 16 Kinetic 11 | 4 7 . . Thermal 50 | 4 7 12 27 Explosive 10 | . . 10 . Electromagnetic . | . . . . Robot Hit Streak 7 | 6 5 7 2 Robot Miss Streak 1 | . 1 1 1 Penetration Max . | . . . . Secondary Targets . | . . . . Shots Hit Robots 32 | 6 8 16 2 Core Hits 28 | 2 3 23 . Critical Kills . | . . . . Critical Parts Destroyed . | . . . . Critical Strikes . | . . . . Melee Attacks . | . . . . Impact . | . . . . Slashing . | . . . . Piercing . | . . . . Sneak Attacks . | . . . . Combat Hostiles . | . . . . Follow-up Attacks . | . . . . Damage Inflicted 1127 | 79 106 908 34 Guns 392 | 79 106 173 34 Cannons . | . . . . Explosions 735 | . . 735 . Melee . | . . . . Ramming . | . . . . Kinetic 136 | 55 81 . . Thermal 528 | 24 25 445 34 Explosive 463 | . . 463 . Electromagnetic . | . . . . Impact . | . . . . Slashing . | . . . . Piercing . | . . . . Highest Corruption 27 | . . . 27 Average Corruption 18 | . . . 18 Corruption Purged . | . . . . Corruption Blocked . | . . . . Effects 8 | . . . 8 Message Errors 2 | . . . 2 Heat Flow Errors 4 | . . . 4 Energy Discharges 1 | . . . 1 Alerts 1 | . . . 1 Overload Shots . | . . . . Overflow Damage 39 | . . 39 . Projectiles . | . . . . Explosions 39 | . . 39 . Melee . | . . . . Knockbacks . | . . . . Impact . | . . . . Kinetic . | . . . . Secondary . | . . . . Self-Inflicted Damage 115 | . . 115 . Shots 4 | . . 4 . Rammed . | . . . . Targets Rammed . | . . . . Kicked . | . . . . Crushed . | . . . . Highest Temperature 240 | 36 45 129 240 Average Temperature 48 | 19 18 42 59 Received Heat Transfer 126 | . 27 72 27 Siege Activations . | . . . . Robots Corrupted . | . . . . Combat Hostiles . | . . . . Parts Fried . | . . . . Impact Corruptions . | . . . . Robots Melted . | . . . . Combat Hostiles . | . . . . Parts Melted . | . . . . Heat Transferred 779 | 74 74 557 74 Parts Sabotaged . | . . . . Parts Stolen . | . . . . Parts Stripped . | . . . . Power Chain Reactions . | . . . . Alert | -11 -10 -9 -8 ------- Run | Yrd Mat Mat Mat Peak Influence 445 | 10 89 445 208 Initial 187 | . 6 37 187 Average 143 | 8 40 177 187 Maximum Alert Level 2 | . . 2 1 Low Security (%) 70 | 100 100 51 67 Level 1 28 | . . 46 32 Level 2 . | . . 1 . Level 3 . | . . . . Level 4 . | . . . . Level 5 . | . . . . High Security . | . . . . Max Security . | . . . . Squads Dispatched 3 | . 1 1 1 Investigation 1 | . . . 1 Extermination . | . . . . Reinforcement 2 | . 1 1 . Assault . | . . . . Garrison . | . . . . Intercept . | . . . . Searches Triggered . | . . . . Construction Impeded . | . . . . Haulers Reinforced . | . . . . Active Scanning Responses . | . . . . Cargo Convoy Interrupts . | . . . . Stealth | -11 -10 -9 -8 --------- Run | Yrd Mat Mat Mat Distress Signals 6 | . 2 4 . Communications Jammed . | . . . . Distress Signals . | . . . . Times Spotted 22 | . 5 16 1 Peak Tracking Total 9 | . 5 9 1 Tactical Retreats 2 | . 1 1 . Traps | -11 -10 -9 -8 ------- Run | Yrd Mat Mat Mat Traps Triggered . | . . . . Indirectly . | . . . . Trap Hack Attempts . | . . . . Triggered . | . . . . Disarmed . | . . . . Reprogrammed . | . . . . Reused . | . . . . Traps Extracted . | . . . . Installed . | . . . . Triggered . | . . . . Machines | -11 -10 -9 -8 ---------- Run | Yrd Mat Mat Mat Machines Disabled 2 | . . 2 . Max in Single Turn 1 | . . 1 . Machines Repaired . | . . . . Machines Dismantled . | . . . . Machines Sabotaged . | . . . . Overloaded Fab Kills . | . . . . Hacking | -11 -10 -9 -8 --------- Run | Yrd Mat Mat Mat Machines Accessed 3 | . 2 . 1 Terminals 2 | . 2 . . Fabricators . | . . . . Repair Stations . | . . . . Recycling Units . | . . . . Scanalyzers 1 | . . . 1 Garrison Access . | . . . . Total Hacks 6 | . 3 . 3 Successful 4 | . 2 . 2 Failed 2 | . 1 . 1 Catastrophic 1 | . 1 . . Database Lockouts . | . . . . Manual . | . . . . Terminals 3 | . 3 . . Fabricators . | . . . . Repair Stations . | . . . . Recycling Units . | . . . . Scanalyzers 3 | . . . 3 Garrison Access . | . . . . Terminal Hacks 2 | . 2 . . Record 1 | . 1 . . Alert Level 1 | . 1 . . Fabricator Hacks . | . . . . Repair Station Hacks . | . . . . Recycling Unit Hacks . | . . . . Scanalyzer 2 | . . . 2 Insert Component 1 | . . . 1 Analyze 1 | . . . 1 Garrison Access Hacks . | . . . . Unauthorized Hacks . | . . . . Terminals . | . . . . Fabricators . | . . . . Repair Stations . | . . . . Recycling Units . | . . . . Scanalyzers . | . . . . Garrison Access . | . . . . Data Cores Recovered . | . . . . Used . | . . . . Hacking Detections 3 | . 2 . 1 Full Trace Events 1 | . . . 1 Feedback Events . | . . . . Feedback Blocked . | . . . . Robot Schematics Acquired . | . . . . Robots Built . | . . . . Authchips . | . . . . Time . | . . . . Total Robot Build Rating . | . . . . Part Schematics Acquired 1 | . . . 1 Parts Built . | . . . . Authchips . | . . . . Time . | . . . . Total Part Build Rating . | . . . . Parts Repaired . | . . . . Time . | . . . . Parts Recycled . | . . . . Recycled Matter . | . . . . Retrieved Matter . | . . . . Retrieved Components . | . . . . Parts Scanalyzed 1 | . . . 1 Part Schematics Acquired 1 | . . . 1 Parts Damaged . | . . . . Bothacking | -11 -10 -9 -8 ------------ Run | Yrd Mat Mat Mat Used RIF Installer . | . . . . Robots Hacked . | . . . . Non-combat . | . . . . Combat . | . . . . Robot Hacks Applied . | . . . . Relay Couplers Released . | . . . . Fabnet Peak Effective % . | . . . . Robots Rewired . | . . . . Allies Hacked . | . . . . Hacks Repelled . | . . . . Allies | -11 -10 -9 -8 -------- Run | Yrd Mat Mat Mat Total Allies . | . . . . Largest Group . | . . . . Highest-Rated Group . | . . . . Highest-Rated Ally . | . . . . Total Orders . | . . . . Ally Attacks . | . . . . Total Damage . | . . . . Kills . | . . . . Allies Corrupted . | . . . . Allies Melted . | . . . . Intel | -11 -10 -9 -8 ------- Run | Yrd Mat Mat Mat Robot Analysis Total . | . . . . Derelict Logs Recovered . | . . . . Drone Launches . | . . . . Drone Recoveries . | . . . . Exploration | -11 -10 -9 -8 ------------- Run | Yrd Mat Mat Mat Turns Passed 785 | 32 176 247 330 Spaces Moved 474 | 15 113 183 163 Core . | . . . . Treads . | . . . . Legs 228 | 15 113 100 . Wheels 31 | . . 31 . Hover . | . . . . Flight 215 | . . 52 163 Fastest Speed 31 | 120 120 31 34 Average Speed 82 | 120 120 98 34 Slowest Speed 190 | 120 120 190 34 Overloaded Moves . | . . . . Propulsion Burnouts . | . . . . Robots Hopped . | . . . . Cave-ins Triggered 15 | . . . 15 Exploration Rate (%) 18 | 3 34 27 9 Regions Visited 3 Branch Regions . Pre-discovered Areas . | . . . . Known Exits Taken . | . . . . Unknown Exits Taken 3 | 1 1 1 . Scrap Searched . | . . . . Spaces Dug 15 | . . . 15 Terrain Destroyed 104 | . . 88 16 Melee . | . . . . Projectile 16 | . . . 16 AOE 88 | . . 88 . Terrain Rammed . | . . . . Walls Destroyed . | . . . . Machines Disabled . | . . . . Actions | -11 -10 -9 -8 --------- Run | Yrd Mat Mat Mat Total 768 | 20 142 226 380 Wait 208 | . 10 13 185 Move 470 | 14 112 182 162 Hop . | . . . . Pick Up 9 | 1 7 1 . Fast Attach 9 | 1 . 7 1 Attach 4 | . . 2 2 Detach 1 | . . . 1 Swap 2 | . . 2 . Drop 14 | . 6 7 1 Fire 50 | 4 7 12 27 Melee . | . . . . Ram . | . . . . Kick . | . . . . Crush . | . . . . Escape Stasis 1 | . . . 1 Rewire . | . . . . Trap . | . . . . Miscellaneous . | . . . . Route ------- -11/Scrapyard -10/Materials -9/Materials -8/Materials History --------- Turn | Location | Event 14 | -11/Scrapyard | Discovered new exit (range 3) 33 | -11/Scrapyard | Entered Materials 196 | -10/Materials | Discovered new exit (range 10) 209 | -10/Materials | Entered another Materials area 209 | -9/Materials | Evolved 2 slots: Propulsion x2 326 | -9/Materials | Build established: Mutant 455 | -9/Materials | Discovered new exit (range 3) 456 | -9/Materials | Entered another Materials area 456 | -8/Materials | Evolved 2 slots: Utility x2 613 | -8/Materials | Crushed by falling debris 634 | -8/Materials | Crushed by falling debris 644 | -8/Materials | Lost 3 parts (1n1u1w) 646 | -8/Materials | Crushed by falling debris 646 | -8/Materials | System corruption reached 10% 654 | -8/Materials | Crushed by falling debris 664 | -8/Materials | Crushed by falling debris 684 | -8/Materials | Crushed by falling debris 685 | -8/Materials | Crushed by falling debris 695 | -8/Materials | Lost 3 parts (1p1n1w) 705 | -8/Materials | Crushed by falling debris 718 | -8/Materials | Crushed by falling debris 718 | -8/Materials | Core integrity fell below 50% 730 | -8/Materials | Crushed by falling debris 755 | -8/Materials | Crushed by falling debris 762 | -8/Materials | Crushed by falling debris 766 | -8/Materials | Crushed by falling debris 766 | -8/Materials | Core integrity fell below 20% 774 | -8/Materials | Crushed by falling debris 787 | -8/Materials | Crushed by falling debris 787 | -8/Materials | Smashed by cave-in Last Messages --------------- 00717_ XG8D4HDQLEKT<6I WOHF1OE#DOD/7 00718_ The unstable cave ceiling collapses. 00718_ Crushed by falling debris. 00730_ The unstable cave ceiling collapses. 00730_ Crushed by falling debris. 00736_ System corrupted: IFF burst signal emitted. 00752_ System corrupted: Heat flow error (+152). 00755_ The unstable cave ceiling collapses. 00755_ Crushed by falling debris. 00755_ Sml. Storage Unit destroyed. 00755_ System corrupted by crushing effect (+5). 00762_ The unstable cave ceiling collapses. 00762_ Crushed by falling debris. 00766_ The unstable cave ceiling collapses. 00766_ Crushed by falling debris. 00768_ W AH/AGSI/K0FDZM|8A1KFF=&XF38/X ALDIL1F9 00774_ The unstable cave ceiling collapses. 00774_ Crushed by falling debris. 00787_ The unstable cave ceiling collapses. 00787_ Crushed by falling debris. Map ----- +----------------------------------------------------+ | | | | | | | | | | | | | | | | | | | | | | | | | ?????????????????????????????????????? | | ?????????????????????????????????????? | | ?????????????????????????????????????? | | ?????????????????????????????????????? | | ?????????????????????????????????????? | | ????????##############???????????????? | | ????????#################????????????? | | ????????## "######???????????? | | ????????## " # ###???????????? | | ????????## """ #### ###??????????? | | ????????## """""########??????????? | | ????????## """""##### ###?????????? | | ????????## """""##########????????? | | ????????## """ ##?###@###????????? | | ????????## ##?#######????????? | | ????????###"##+##############????????? | | ????????#### ############????????? | | ?????????### ##????????? | | ??????????## #########?? | | ??????????## #########?? | | ??????????## ####### #### ##?? | | ??????????#####"######## #### ##?? | | ??????????#####" # #### ##?? | | ????????????#### # #### ##?? | | ????????????#### """ # ##?? | | ????????????## # """ + ##?? | | ????????????#### """ # ##?? | | ?????????????### ##+##### ##?? | | ????????????? #==! # "" # ##?? | | ?????????????? #=!! # ""S # ##?? | | ?????????????? #=! # "" + ##?? | | ?????????????? # # # ##?? | | ?????????????? # # # ##?? | | ?????????????? ######### # ##?? | | ?????????????? ################ ##?? | | ??????????????????????######### ##?? | | ??????????????????????######### ##?? | | ??????????????????????######### ##?? | +----------------------------------------------------+ Best States ------------- Heat Dissipation 31 Energy Generation 10 Energy Capacity 250 Matter Stores 300 Matter Capacity 300 Sight Range 16 Terrain Scan Density 10 Evasion (%) 63 Item Schematics ----------------- Imp. Flight Unit | -8/Materials | Scanalyzed Robot Schematics ------------------ None Fabricated ------------ Nothing Alien Tech Used ----------------- None Achievements -------------- None Challenges ------------ None Game ------ Seed SubatomicLatentLance Manual? 0 Play Time 00:12:34 Cumulative 31.7 hours Start 2024.08.25 @ 20:37:55 End 2024.08.25 @ 20:49:51 Sessions 1 Manual Loads 0 Difficulty Rogue Special Mode None Game No. 54 Rogue 53 Adventurer 1 Explorer 0 Win Type - Total 0 Types 0/0/0/0/0/0/0/0/0 Lore% 8 Gallery% 29 Achievement% 24 Wizard Run 0 Options --------- Layout 0 ASCII 0 Keyboard 0 Movement Mouse Keybinds 0 Fullscreen 1 Font 24/Smallcaps Map View 76x50 Zoom Use 0% Tactical HUD 1 Map Filters NONE Filters NONE Steam 1 RUN: c2431627-6045-4001-8789-082552225c6b